bitfinex/quotes_ETHUSD_20241106
["timestamp","ask_amount","ask_price","bid_price","bid_amount"]
[1730933619780,0.8304,2742.8,2740.3,4.69417934]
[1730933620117,0.04666825,2742.9,2740.4,0.57589971]
[1730933620118,0.8304,2742.5,2740.4,0.57589971]
[1730933620419,0.03666825,2742.4,2740.4,0.57589971]
[1730933620718,0.03666825,2742.4,2740.5,0.07294529]
[1730933620916,0.03666825,2742.4,2740.6,0.57589971]
[1730933621399,0.03666825,2742.4,2740.7,0.07294531]
[1730933621607,0.03666825,2742.4,2740.8,0.57589971]
[1730933622378,0.772,2742.3,2739.8,6.05830071]
[1730933622579,0.03666825,2742.2,2740.1,0.57589971]
[1730933623019,0.03666825,2742.2,2740.2,0.07295384]
[1730933623226,0.03666825,2742.2,2740.3,0.57589971]
[1730933624033,0.8078,2742.1,2740.3,0.57589971]
[1730933624366,0.8078,2742.1,2739.8,4.69417934]
[1730933624367,0.8078,2741.9,2739.9,0.57589971]
[1730933624533,0.03666825,2741.8,2739.9,3.57589971]
[1730933624733,0.03666825,2741.8,2739.9,0.57589971]
[1730933625227,0.7602,2741.7,2739.9,0.57589971]
[1730933625428,0.03666825,2741.6,2739.9,0.57589971]
[1730933625859,0.8081,2741.5,2739.3,4.69417934]
[1730933626034,0.03666825,2741.4,2739.6,0.57589971]
[1730933626422,0.8081,2741.3,2739.6,0.57589971]
[1730933626629,0.03666825,2741.2,2739.6,0.57589971]
[1730933626931,0.03666825,2741.2,2739.7,0.07297971]
[1730933627146,0.03666825,2741.2,2739.8,0.57589971]
[1730933627347,0.03666825,2741.2,2739.3,4.69417934]
[1730933627348,0.781,2741.1,2739.4,0.53899138]
[1730933627672,0.03666825,2741.0,2739.5,0.07298291]
[1730933627883,0.03666825,2741.0,2739.6,0.53899138]
[1730933628169,0.03666825,2741.0,2739.7,0.07298291]
[1730933629472,0.03666825,2741.0,2739.3,4.69417934]
[1730933629779,0.03666825,2741.0,2739.4,0.53899138]
[1730933629976,0.7812,2740.9,2739.0,0.781]
[1730933630276,0.7812,2740.9,2738.9,3.0]
[1730933630277,0.03666825,2740.8,2739.3,5.24417934]
[1730933630435,0.03666825,2740.8,2738.9,3.0]
[1730933630436,0.7812,2740.9,2739.8,4.69417934]
[1730933630638,0.7812,2740.9,2739.9,0.61195611]
[1730933630839,0.7812,2740.9,2739.9,1.14841275]
[1730933631039,0.70826845,2740.9,2739.9,1.14841275]
[1730933631276,0.70826845,2740.9,2739.9,1.22137752]
[1730933631673,0.70826845,2740.9,2739.9,1.14841275]
[1730933632081,0.70826845,2740.9,2740.0,0.55]
[1730933632277,0.03666825,2742.5,2740.3,4.69417934]
[1730933632480,0.03666825,2742.5,2740.4,0.61194538]
[1730933633187,0.03666825,2742.5,2740.4,1.22136675]
[1730933633362,0.01,2742.3,2740.6,4.69417934]
[1730933633562,0.03666825,2742.3,2740.7,0.61194544]
[1730933633758,0.03666825,2742.7,2740.7,0.61194544]
[1730933633959,0.7889,2742.6,2740.7,0.61194544]
[1730933634226,0.03666825,2742.5,2740.7,0.61194544]
[1730933635893,0.7732,2742.4,2740.7,0.61194544]
[1730933636053,0.7732,2742.2,2740.7,0.61194544]
[1730933636254,0.7732,2742.1,2740.3,1.08899138]
[1730933636656,0.01833495,2742.0,2740.3,0.53899138]
[1730933637104,0.8015,2741.9,2740.3,0.53899138]
[1730933637262,0.01833495,2741.8,2740.3,0.53899138]
[1730933637592,0.01833495,2741.8,2740.3,1.14841275]
[1730933637797,0.8015,2741.7,2740.3,0.53899138]
[1730933637997,0.8015,2741.7,2740.4,0.07295417]
[1730933638300,0.8015,2741.7,2740.5,0.53899138]
[1730933638469,0.8015,2741.7,2740.6,0.68236814]
[1730933638669,0.8015,2741.7,2740.7,0.53899138]
[1730933638895,0.8015,2741.7,2740.8,0.07294645]
[1730933639377,0.8015,2741.7,2740.7,0.53899138]
[1730933639694,0.8015,2741.7,2740.6,4.69417934]
[1730933639695,0.8015,2741.7,2740.8,0.53899138]
[1730933640490,0.8015,2741.7,2740.3,3.53899138]
[1730933640799,0.8015,2741.7,2740.3,0.53899138]
[1730933641582,0.8015,2741.7,2740.4,0.60942137]
[1730933641789,0.8015,2741.7,2740.4,0.53899138]
[1730933642055,0.8015,2741.7,2740.5,0.61194573]
[1730933642308,0.8015,2741.7,2740.5,0.53899138]
[1730933642796,0.01833495,2741.6,2740.2,4.69417934]
[1730933642958,0.01833495,2741.6,2740.2,5.19862905]
[1730933643159,0.01833495,2741.6,2740.3,0.50444971]
[1730933643880,0.01833495,2741.6,2740.2,4.69417934]
[1730933644081,0.01833495,2741.6,2740.4,0.60942137]
[1730933644281,0.01833495,2741.6,2740.5,0.07296344]
[1730933645269,0.01833495,2741.6,2740.3,1.11387108]
[1730933645270,0.01833495,2741.6,2740.3,0.50444971]
[1730933646438,0.7634,2741.5,2740.3,0.50444971]
[1730933646726,0.01833495,2741.4,2740.3,0.50444971]
[1730933647528,0.01833495,2741.4,2739.9,0.79253784]
[1730933647701,0.01833495,2741.4,2740.0,0.53119971]
[1730933648038,0.7634,2741.5,2740.0,0.53119971]
[1730933648189,0.7634,2741.3,2740.1,0.07297195]
[1730933648389,0.01833495,2741.2,2740.1,0.07297195]
[1730933648705,0.01,2741.6,2739.5,4.69417934]
[1730933648905,0.01,2741.8,2739.6,1.47518896]
[1730933649244,0.02,2741.6,2739.6,1.21359812]
[1730933649391,0.02,2741.6,2739.6,1.47532756]
[1730933649888,0.01,2741.2,2739.6,0.87115081]
[1730933650094,0.02,2741.2,2739.1,0.26172944]
[1730933650292,0.02,2741.2,2739.0,0.26172944]
[1730933650531,0.02,2741.2,2738.9,0.26172944]
[1730933650896,4.70417934,2740.7,2738.9,0.68734615]
[1730933651092,4.70417934,2740.7,2737.9,0.8276]
[1730933651093,0.01,2740.5,2738.3,0.47768097]
[1730933651418,3.47041793,2740.6,2738.4,0.07300986]
[1730933651419,0.01,2740.1,2738.4,0.07300986]
[1730933651727,0.7634,2740.0,2738.5,0.47768097]
[1730933652046,3.47041793,2740.6,2738.2,0.47768097]
[1730933652047,0.789,2739.8,2738.2,0.47768097]
[1730933652196,0.789,2739.8,2738.3,0.47768097]
[1730933652395,0.789,2739.8,2738.4,0.07302497]
[1730933652701,0.789,2739.8,2738.4,0.55070594]
[1730933653600,0.799,2739.8,2738.4,0.07302497]
[1730933653791,0.799,2739.8,2738.2,0.68244895]
[1730933654732,0.799,2739.8,2738.2,1.03201901]
[1730933654733,0.789,2739.8,2738.2,1.03201901]
[1730933654944,0.789,2739.8,2738.2,1.10503748]
[1730933655141,0.71605,2739.8,2738.3,0.55]
[1730933655299,0.71605,2739.8,2738.4,0.073011]
[1730933655499,0.71605,2739.8,2738.0,0.55]
[1730933655736,0.71605,2739.8,2738.1,0.07301846]
[1730933655941,0.71605,2739.8,2738.0,0.97259764]
[1730933656305,3.47041793,2740.6,2737.7,3.0]
[1730933656306,0.01,2739.7,2737.7,3.0]
[1730933656501,0.02,2739.9,2737.8,0.07302938]
[1730933656803,0.02,2739.9,2737.8,1.10504839]
[1730933657232,0.02,2739.9,2737.8,0.49562702]
[1730933657404,0.02,2739.9,2737.8,0.49562139]
[1730933657614,0.01,2739.9,2737.9,0.55]
[1730933657818,0.01,2739.8,2738.0,0.07302507]
[1730933658005,0.01,2739.8,2737.8,0.4956291]
[1730933658203,0.789,2739.7,2737.8,0.42259764]
[1730933659143,0.789,2739.7,2737.9,0.60942137]
[1730933659298,0.789,2739.7,2737.8,0.42259764]
[1730933659500,0.01,2739.6,2737.8,0.42259764]
[1730933659728,0.01,2739.4,2737.8,0.42259764]
[1730933659911,0.01,2739.4,2737.9,0.07302872]
[1730933659912,0.7941,2739.3,2737.9,0.07302872]
[1730933660117,0.7941,2739.3,2737.7,0.07303512]
[1730933660631,0.7941,2739.3,2737.8,0.60942137]
[1730933660838,0.7941,2739.3,2737.9,0.07303701]
[1730933661757,0.7941,2739.3,2737.7,0.0730385]
[1730933662229,0.8171,2739.2,2737.7,0.0730385]
[1730933662646,0.8271,2739.2,2737.1,4.69417934]
[1730933663022,0.8271,2739.2,2737.1,6.57691898]
[1730933663962,0.8248,2738.8,2737.1,5.11677698]
[1730933664269,0.01,2738.6,2737.2,0.07304993]
[1730933664559,0.8348,2738.4,2736.6,4.69417934]
[1730933664780,0.8348,2738.4,2736.8,1.460257]
[1730933664921,0.8348,2738.4,2736.6,5.11677698]
[1730933665468,0.8348,2738.4,2736.7,0.07306502]
[1730933665762,0.8348,2738.4,2736.7,0.49566266]
[1730933666134,0.8348,2738.4,2736.7,3.49566266]
[1730933666631,0.8348,2738.4,2736.7,0.49566266]
[1730933666834,0.7725,2738.1,2736.7,0.07306502]
[1730933667156,0.7725,2738.1,2736.7,0.07306959]
[1730933667356,0.7725,2738.1,2736.7,0.49566723]
[1730933667819,0.7725,2738.1,2736.7,0.49566244]
[1730933668021,0.69952,2738.1,2736.7,0.49566244]
[1730933668329,0.69952,2738.1,2736.6,4.69417934]
[1730933668553,0.69952,2738.1,2736.7,0.07306481]
[1730933669064,0.01,2738.2,2736.7,0.07306481]
[1730933669257,0.01,2738.0,2736.4,0.07307068]
[1730933669451,0.01,2738.2,2736.6,0.60942137]
[1730933669799,0.01,2738.4,2736.7,0.07307068]
[1730933670097,0.01,2738.7,2736.7,0.07307068]
[1730933670098,0.02,2738.7,2736.8,0.60942137]
[1730933670255,0.01,2738.5,2736.9,0.07306161]
[1730933670456,0.01,2738.5,2736.9,0.68248298]
[1730933670655,0.01,2738.8,2737.0,0.60942137]
[1730933670853,0.01,2738.8,2737.1,0.073057]
[1730933670854,0.01,2738.7,2737.1,0.073057]
[1730933671082,0.8305,2738.6,2737.1,0.073057]
[1730933671892,0.8305,2738.6,2737.2,0.07305679]
[1730933672090,0.8305,2738.6,2736.7,0.42259764]
[1730933672091,0.8305,2738.6,2737.1,0.68247842]
[1730933672607,0.8305,2738.6,2737.2,1.23247841]
[1730933673290,0.8305,2738.6,2737.3,0.07303687]
[1730933673506,0.8305,2738.6,2737.3,0.60942137]
[1730933673868,0.8305,2738.6,2737.4,0.55]
[1730933674088,0.8305,2738.6,2737.5,0.60942137]
[1730933674313,0.8305,2738.6,2737.6,0.07303923]
[1730933674684,0.83049973,2738.6,2737.6,0.55]
[1730933674892,0.83049973,2738.6,2737.2,0.55]
[1730933674893,0.83049973,2738.6,2737.2,1.15942137]
[1730933675279,0.83049973,2738.6,2737.3,0.60942137]
[1730933675595,0.83049973,2738.6,2737.4,0.55]
[1730933676615,0.83049973,2738.6,2737.5,0.60942137]
[1730933676904,0.83049973,2738.6,2737.6,0.62303928]
[1730933677106,0.83049973,2738.6,2737.7,0.60942137]
[1730933677406,0.83049973,2738.6,2737.6,0.62303928]
[1730933677407,0.83049973,2738.6,2737.8,0.07303684]
[1730933677607,0.83049973,2738.6,2737.5,0.55]
[1730933678104,0.83049973,2738.6,2737.6,0.60942137]
[1730933678325,0.83049973,2738.6,2737.5,0.55]
[1730933678488,0.83049973,2738.6,2737.6,0.60942137]
[1730933678671,0.83049973,2738.6,2737.7,0.07304767]
[1730933678871,0.83049973,2738.6,2737.7,0.68246904]
[1730933679072,0.83049973,2738.6,2737.8,0.60942137]
[1730933680597,0.83049955,2738.6,2737.3,1.12108804]
[1730933680799,0.83049955,2738.6,2737.5,0.55]
[1730933681098,0.83049955,2738.6,2737.6,0.07304262]
[1730933681498,0.83049955,2738.6,2737.6,0.64413066]
[1730933682429,0.83049955,2738.6,2737.6,0.07304262]
[1730933683811,0.83049955,2738.6,2737.6,0.64413066]
[1730933684344,0.83049955,2738.6,2737.6,0.07304262]
[1730933684500,0.83049955,2738.6,2737.5,0.55]
[1730933685022,0.83049955,2738.6,2737.6,0.07304247]
[1730933685218,0.83049955,2738.6,2737.6,0.64413051]
[1730933685730,0.83049955,2738.6,2737.6,0.07304247]
[1730933685917,0.83049955,2738.6,2737.4,0.55]
[1730933686914,0.83049946,2738.6,2737.4,0.55]
[1730933687114,0.83049946,2738.6,2737.4,1.08460607]
[1730933687501,0.83049946,2738.6,2737.5,0.53460607]
[1730933687896,0.83049946,2738.6,2737.6,0.55]
[1730933688343,0.84049946,2738.6,2737.5,0.53460607]
[1730933688534,0.01,2738.3,2736.2,4.30382087]
[1730933688734,0.02,2738.3,2736.2,4.30382087]
[1730933689239,0.01,2738.0,2736.2,4.30382087]
[1730933689441,0.01,2738.0,2736.3,0.26318771]
[1730933689612,0.01,2738.1,2736.3,0.26318771]
[1730933689800,0.01,2738.3,2736.3,0.26318771]
[1730933690004,0.832,2738.2,2736.3,0.26318771]
[1730933690209,0.832,2738.2,2736.2,4.30382087]
[1730933690616,0.7948,2738.0,2736.2,4.30382087]
[1730933690947,0.7848,2738.0,2736.3,0.07307641]
[1730933691126,0.7948,2738.0,2736.3,0.07307641]
[1730933691330,0.7848,2738.0,2736.3,0.54122067]
[1730933691642,0.7948,2738.0,2736.3,0.54122067]
[1730933691816,0.7848,2738.0,2736.3,0.54122067]
[1730933692537,0.7848,2738.0,2736.3,0.07307641]
[1730933693698,0.7954,2737.9,2736.3,0.07307641]
[1730933696808,0.7954,2737.9,2736.2,4.30382087]
[1730933698851,0.7641,2737.3,2736.2,0.005916]
[1730933699208,0.7641,2736.1,2735.8,4.29790487]
[1730933700450,0.7641,2736.1,2735.4,4.69383584]
[1730933700947,0.7641,2736.1,2735.5,0.55]
[1730933702257,0.7641,2736.1,2735.1,3.0]
[1730933702454,0.7641,2736.1,2735.0,4.69383584]
[1730933702455,0.7641,2736.1,2735.0,4.29790487]
[1730933702959,0.7641,2736.1,2735.1,0.07310952]
[1730933703258,0.7641,2736.1,2735.0,4.29790487]
[1730933704347,0.01,2735.9,2734.4,4.29790487]
[1730933704543,0.7737,2735.8,2734.5,0.07313127]
[1730933704850,0.7737,2735.8,2734.4,4.29790487]
[1730933705931,0.81,2735.5,2734.4,4.29790487]
[1730933708047,0.81,2735.5,2734.1,0.55]
[1730933708252,0.81,2735.5,2734.4,0.55]
[1730933708425,0.81,2735.5,2734.4,0.99814426]
[1730933708764,0.81,2735.5,2734.4,0.44814426]
[1730933708923,0.81,2735.5,2734.5,1.0712792]
[1730933709120,0.81,2735.5,2734.8,0.55]
[1730933709325,0.81,2735.5,2734.8,0.62312137]
[1730933709521,0.81,2736.1,2735.1,4.29790487]
[1730933709865,0.81,2736.1,2735.2,1.07125066]
[1730933710019,0.81,2736.1,2735.6,0.55]
[1730933710222,0.81,2736.1,2735.8,0.55]
[1730933710422,0.81,2736.1,2735.5,4.29790487]
[1730933710423,0.81,2736.1,2736.0,0.55]
[1730933710658,0.014084,2736.2,2736.0,0.55]
[1730933710858,0.014084,2736.2,2736.1,0.62308668]
[1730933714874,0.014084,2736.2,2735.9,0.55]
[1730933715629,0.014084,2736.2,2736.1,0.55]
[1730933716764,0.014084,2736.2,2736.1,0.07307021]
[1730933716968,0.014084,2736.2,2736.1,0.62307021]
[1730933717463,0.014084,2736.2,2736.0,0.55]
[1730933718403,0.014084,2736.2,2736.1,0.62307594]
[1730933719446,0.014084,2736.2,2736.1,1.07900691]
[1730933719966,0.014084,2736.2,2736.1,1.5204845]
[1730933720375,0.014084,2736.2,2736.1,1.00593097]
[1730933721989,0.014084,2736.2,2736.1,1.8728997]
[1730933722173,0.014084,2736.2,2736.1,1.79983097]
[1730933722379,0.01,2738.5,2736.1,1.79983097]
[1730933722380,0.7737,2738.4,2736.2,1.3389]
[1730933722587,0.7737,2738.4,2737.1,1.3389]
[1730933722774,0.7737,2738.4,2737.5,0.55]
[1730933722965,0.7737,2738.4,2737.7,0.55]
[1730933723165,0.7737,2738.4,2737.9,0.55]
[1730933723368,0.7737,2738.4,2738.0,0.07303852]
[1730933724753,0.7737,2738.4,2738.1,0.55]
[1730933728094,0.7737,2738.4,2737.6,4.29790487]
[1730933728455,0.7737,2738.4,2737.7,0.62303849]
[1730933729389,0.7737,2738.4,2737.7,0.55]
[1730933729996,0.7737,2738.4,2737.9,0.55]
[1730933730196,0.7737,2738.4,2738.0,0.07303855]
[1730933733099,0.7737,2738.4,2737.9,0.55]
[1730933733401,0.7737,2738.4,2737.5,0.55]
[1730933733693,0.7737,2738.4,2737.7,3.42858379]
[1730933733900,0.7737,2738.4,2737.8,0.55]
[1730933734579,0.7737,2738.4,2737.9,0.07304027]
[1730933734900,0.7737,2738.4,2737.8,0.62304124]
[1730933735104,0.7737,2738.4,2737.8,0.55]
[1730933735288,0.7737,2738.4,2737.7,3.42858379]
[1730933735667,0.7737,2738.4,2737.4,0.55]
[1730933735882,0.7737,2738.4,2737.7,0.55]
[1730933736099,0.7737,2738.4,2737.7,0.62304522]
[1730933737689,0.7737,2738.4,2737.7,0.55]
[1730933744418,0.7737,2738.4,2737.4,0.55]
[1730933744605,0.7737,2738.4,2737.3,3.42858379]
[1730933745410,0.7737,2738.4,2737.1,0.55]
[1730933745820,0.7737,2738.4,2737.0,3.42858379]
[1730933746035,0.7737,2738.4,2737.1,0.07305972]
[1730933746328,2.7937,2739.0,2737.1,0.07305972]
[1730933746481,0.62222838,2738.9,2737.1,0.07305972]
[1730933746887,0.62222838,2738.9,2737.0,3.42858379]
[1730933747108,0.62222838,2738.9,2737.1,0.07306284]
[1730933749392,0.6706,2738.8,2737.1,0.07306284]
[1730933751522,0.6706,2738.8,2737.1,0.08306284]
[1730933752221,0.6706,2738.8,2736.9,0.01]
[1730933752408,3.0,2738.5,2736.5,0.08305912]
[1730933752608,3.0,2738.5,2736.5,0.01]
[1730933752609,0.6706,2738.3,2736.5,0.01]
[1730933753118,0.6706,2738.3,2736.5,0.07307619]
[1730933753422,0.6706,2738.3,2736.4,3.43858379]
[1730933754122,0.6706,2738.2,2736.4,3.43858379]
[1730933758830,0.6706,2738.1,2736.4,3.43858379]
[1730933759034,0.6706,2737.9,2736.4,3.43858379]
[1730933765538,0.6706,2737.9,2736.7,3.42858379]
[1730933766475,0.6706,2737.9,2736.5,0.0730837]
[1730933767472,0.6706,2737.9,2736.7,3.42858379]
[1730933767682,0.6706,2737.9,2736.8,0.62306174]
[1730933768360,0.6706,2737.9,2736.8,0.55]
[1730933771195,0.6706,2737.9,2736.9,0.07306165]
[1730933774326,0.6706,2737.9,2736.8,3.56]
[1730933775422,0.6706,2737.9,2736.8,0.56]
[1730933775599,0.6706,2737.9,2737.0,0.01]
[1730933775800,0.6706,2737.9,2736.8,0.55]
[1730933776001,0.6706,2737.9,2736.9,0.01]
[1730933776510,0.6706,2737.9,2736.7,3.42858379]
[1730933776716,0.6706,2737.9,2736.4,0.01]
[1730933777032,0.6706,2737.7,2736.4,0.01]
[1730933785941,0.6706,2737.7,2736.8,3.42858379]
[1730933786236,0.6706,2737.7,2736.9,0.62306588]
[1730933786439,0.6706,2737.7,2736.9,0.07306588]
[1730933786739,0.6706,2737.7,2736.7,0.56]
[1730933786940,0.6706,2737.7,2736.8,0.07306782]
[1730933787140,0.6706,2737.7,2736.7,0.01]
[1730933787335,0.6706,2737.7,2736.7,0.56]
[1730933787741,0.6706,2737.7,2736.7,0.01]
[1730933790345,0.6706,2737.7,2736.9,0.01]
[1730933791445,0.6706,2737.7,2736.5,0.56]
[1730933791609,0.6706,2737.7,2736.9,0.01]
[1730933793154,0.6706,2737.7,2736.7,0.01]
[1730933793520,0.6706,2738.0,2736.9,0.01]
[1730933795432,0.6706,2738.0,2736.8,0.55]
[1730933795741,0.6706,2738.0,2736.9,0.01]
[1730933795940,0.6706,2738.0,2736.8,0.55]
[1730933796178,0.6706,2738.0,2736.9,0.01]
[1730933796719,0.6706,2738.0,2736.7,3.43858379]
[1730933797223,0.6706,2738.0,2736.9,0.01]
[1730933797617,0.6706,2738.0,2737.1,0.01]
[1730933797949,0.6706,2738.0,2737.1,0.08305828]
[1730933802166,0.6706,2738.0,2737.1,0.01]
[1730933802340,0.6706,2738.0,2737.0,3.50164206]
[1730933802741,0.6706,2738.0,2737.1,0.01]
[1730933803692,0.6706,2738.0,2737.0,3.50164206]
[1730933803956,0.6706,2738.0,2737.1,0.01]
[1730933811388,0.6706,2738.0,2737.2,1.53548068]
[1730933811541,0.6706,2738.0,2736.8,1.53548068]
[1730933811542,0.6706,2738.0,2736.6,0.56]
[1730933811741,0.6706,2738.0,2736.7,1.53548068]
[1730933813578,0.6706,2738.0,2736.6,0.01]
[1730933816889,0.6706,2738.0,2737.3,3.43169667]
[1730933817065,0.6706,2738.0,2737.1,0.01]
[1730933825054,0.6706,2738.0,2736.9,0.01]
[1730933825890,0.6706,2738.0,2737.1,0.01]
[1730933830078,0.6706,2738.0,2736.9,0.01]
[1730933830687,0.6706,2738.0,2736.7,0.47667402]
[1730933830980,0.6706,2738.0,2736.9,0.01]
[1730933832819,0.6706,2738.0,2736.7,0.47667402]
[1730933832820,0.6706,2738.0,2736.7,0.01]
[1730933833124,0.6706,2738.0,2736.9,0.01]
[1730933833278,0.6706,2738.0,2736.7,1.5359761]
[1730933833678,0.6706,2738.0,2736.9,0.01]
[1730933833917,0.6706,2738.0,2736.7,1.5459761]
[1730933835222,0.6706,2737.9,2736.7,0.01]
[1730933835378,0.6706,2737.7,2736.7,0.01]
[1730933836583,0.6706,2737.7,2736.6,1.5359761]
[1730933836995,0.6706,2737.7,2736.5,0.01]
[1730933837192,0.6706,2737.7,2733.6,1.86493304]
[1730933837193,0.6706,2736.5,2734.7,0.8252]
[1730933837394,0.6706,2736.3,2735.0,1.5359761]
[1730933837609,0.6706,2736.3,2734.6,0.01]
[1730933837610,0.6706,2736.3,2735.1,0.0731159]
[1730933837814,0.6706,2736.3,2734.9,1.5359761]
[1730933838334,0.6706,2736.3,2734.6,0.01]
[1730933838630,1.5359761,2736.0,2734.6,1.5359761]
[1730933838841,0.6706,2735.9,2734.2,0.01]
[1730933839137,0.6706,2735.9,2734.7,1.5359761]
[1730933839339,0.6706,2735.9,2734.2,0.01]
[1730933839543,0.6706,2735.9,2734.4,3.43711411]
[1730933839700,0.6706,2735.9,2734.5,0.07312879]
[1730933840321,0.6706,2735.9,2734.4,3.43711411]
[1730933840905,0.6706,2735.9,2734.4,3.51024521]
[1730933841398,0.6706,2735.9,2734.1,3.65808015]
[1730933841603,3.43711411,2736.0,2734.2,3.0]
[1730933841604,0.6706,2735.7,2734.2,3.0]
[1730933842000,0.6706,2735.7,2734.3,0.0731355]
[1730933842198,0.6706,2735.7,2734.1,0.22096604]
[1730933842399,0.6706,2735.7,2734.2,3.43711411]
[1730933843537,0.6706,2735.6,2734.1,0.22096604]
[1730933843749,0.6706,2735.4,2734.1,0.22096604]
[1730933844325,0.6706,2735.4,2734.0,3.60437882]
[1730933844946,0.6706,2735.4,2734.0,3.51025391]
[1730933845356,0.6706,2735.3,2733.8,0.38823075]
[1730933845660,0.6706,2735.0,2733.5,0.51921775]
[1730933845822,0.6706,2734.8,2733.5,0.130987]
[1730933846326,0.6706,2734.7,2733.5,0.130987]
[1730933847952,0.41077141,2734.9,2733.5,0.130987]
[1730933847953,0.6706,2734.4,2733.5,0.130987]
[1730933851043,0.6706,2734.1,2733.5,0.130987]
[1730933851246,0.6706,2733.9,2733.5,0.130987]
[1730933851422,0.6706,2733.8,2733.5,0.130987]
[1730933853365,0.41077141,2734.0,2733.5,0.130987]
[1730933853366,3.43711411,2733.6,2733.5,0.130987]
[1730933853521,3.78082552,2733.6,2732.0,0.07318875]
[1730933853727,3.43711411,2733.3,2731.5,0.2839306]
[1730933853961,3.43711411,2733.3,2731.6,0.07320621]
[1730933854126,3.43711411,2733.3,2731.5,0.07320778]
[1730933854325,3.43711411,2733.3,2731.4,3.43711411]
[1730933854326,3.43711411,2733.3,2731.4,3.51032187]
[1730933854662,0.5396,2733.1,2731.4,3.51032187]
[1730933855538,0.5396,2732.9,2731.1,3.43711411]
[1730933855751,0.5396,2732.9,2731.2,0.07322003]
[1730933855955,0.5396,2732.9,2730.8,0.755987]
[1730933855956,3.43711411,2732.3,2730.8,0.755987]
[1730933856298,0.5396,2732.1,2730.8,0.755987]
[1730933856470,0.5396,2731.9,2730.8,0.755987]
[1730933856620,0.34371141,2732.2,2730.8,0.755987]
[1730933856621,0.61282011,2731.8,2730.8,0.755987]
[1730933857866,0.5396,2731.8,2731.2,3.43711411]
[1730933858368,0.5396,2732.8,2731.5,3.43711411]
[1730933858530,0.5396,2732.8,2731.6,0.0732085]
[1730933858531,0.07322011,2732.7,2731.6,0.0732085]
[1730933860386,0.07322011,2732.7,2731.6,0.0832085]
[1730933860687,0.07322011,2732.7,2731.8,3.43711411]
[1730933860849,0.5396,2732.8,2732.1,3.43711411]
[1730933861047,0.07322011,2733.3,2732.2,0.01]
[1730933861243,0.5396,2733.0,2732.6,0.01]
[1730933861482,0.5396,2733.9,2732.6,0.01]
[1730933861684,0.07322011,2733.8,2732.6,0.08317532]
[1730933861887,0.07322011,2733.8,2732.5,0.55]
[1730933862042,0.07322011,2733.8,2732.4,3.44711411]
[1730933862585,0.61282011,2734.3,2732.4,3.44711411]
[1730933862886,0.5396,2734.1,2732.5,0.07318009]
[1730933863086,0.5396,2733.9,2732.5,0.07318009]
[1730933863247,0.07322011,2733.8,2732.4,3.44711411]
[1730933863588,0.07322011,2733.8,2732.5,0.07318005]
[1730933865562,0.07322011,2733.8,2732.7,3.43711411]
[1730933869671,0.07322011,2733.8,2732.8,0.07317487]
[1730933870110,0.07322011,2733.8,2732.7,3.43711411]
[1730933870614,0.5396,2733.7,2732.5,0.55]
[1730933870841,0.07322011,2733.6,2732.5,0.55]
[1730933871675,0.07322011,2733.6,2732.6,0.07318178]
[1730933876376,0.07322011,2733.6,2732.5,0.55]
[1730933876576,0.07322011,2733.6,2732.6,0.07318155]
[1730933877096,0.07322011,2733.6,2732.7,0.56]
[1730933877406,0.5396,2733.7,2732.8,0.07317295]
[1730933879255,0.5396,2733.7,2732.2,0.28176604]
[1730933879468,0.5396,2733.3,2731.5,0.804]
[1730933879659,0.63109482,2733.2,2731.5,0.804]
[1730933879818,0.63109482,2733.2,2731.6,0.07320438]
[1730933880017,0.63109482,2733.2,2731.5,0.804]
[1730933880432,0.63109482,2733.2,2731.3,3.43711411]
[1730933880637,0.63109482,2733.2,2731.1,1.11227738]
[1730933880859,3.43711411,2733.1,2731.1,4.26201411]
[1730933881153,0.63111758,2733.0,2731.1,4.26201411]
[1730933882066,0.63111758,2733.0,2731.1,3.43711411]
[1730933882356,0.63111758,2733.0,2730.8,1.04603619]
[1730933882685,0.63111758,2733.0,2730.8,4.19310111]
[1730933882686,0.5396,2732.7,2730.8,4.19310111]
[1730933882970,0.5396,2732.5,2730.8,4.19310111]
[1730933883121,0.09152854,2732.4,2730.8,4.19310111]
[1730933883323,0.5396,2732.3,2730.8,4.19310111]
[1730933883635,0.63112952,2732.2,2730.8,4.19310111]
[1730933884934,0.63112952,2732.2,2730.9,0.07322355]
[1730933885966,0.63112952,2732.2,2730.8,4.19310111]
[1730933886862,0.63112952,2732.2,2730.9,0.07322694]
[1730933887452,0.63112952,2732.2,2730.8,3.08266445]
[1730933892351,0.63112952,2732.2,2730.4,0.28386685]
[1730933892352,0.63112952,2732.2,2730.5,3.43711411]
[1730933892574,0.5396,2732.0,2730.5,3.43711411]
[1730933892781,0.5396,2731.8,2730.5,3.43711411]
[1730933892968,0.5396,2731.6,2730.2,0.29122716]
[1730933893177,0.5396,2731.4,2729.8,3.84446468]
[1730933893480,0.5396,2731.2,2729.8,3.43711411]
[1730933893695,0.5396,2731.0,2729.6,0.8288]
[1730933893881,0.09156288,2730.9,2729.8,3.43711411]
[1730933894492,0.09156288,2730.9,2729.6,0.8288]
[1730933894802,0.5396,2730.8,2730.0,3.43711411]
[1730933894998,0.09156283,2730.7,2730.0,3.43711411]
[1730933897700,0.5396,2731.5,2730.6,3.43711411]
[1730933897905,0.5396,2731.5,2731.0,3.43711411]
[1730933898266,0.5396,2731.5,2731.3,3.43711411]
[1730933898598,0.5396,2732.8,2731.3,3.43711411]
[1730933898758,3.45711411,2733.0,2731.3,3.43711411]
[1730933898759,0.5396,2732.6,2731.3,3.43711411]
[1730933898965,0.5396,2732.4,2731.3,3.43711411]
[1730933899158,0.0915183,2732.3,2731.3,3.43711411]
[1730933899983,0.5396,2732.4,2731.6,3.43711411]
[1730933900496,0.5396,2732.4,2731.9,3.43711411]
[1730933901197,0.01,2733.7,2731.4,0.7737]
[1730933901198,0.5396,2733.7,2732.2,3.43711411]
[1730933901419,0.63108788,2733.6,2732.2,3.43711411]
[1730933901755,0.63108788,2733.6,2732.5,3.43711411]